[Event "Early-Titled-Tuesday-Blitz-February-06-2024"]
[Site "Chess.com"]
[Date "2024.02.06"]
[Round "9"]
[White "Willhaven3"]
[Black "malakismayil"]
[Result "1-0"]
[WhiteElo "2627"]
[BlackElo "2506"]
[TimeControl "180+1"]
[EndTime "9:44:35 PST"]
[Termination "Willhaven3 won on time"]

1. d4 {[%clk 0:03:00.9]} 1... d5 {[%clk 0:02:58.1]} 2. Nf3 {[%clk 0:03:01.3]}
2... Nf6 {[%clk 0:02:57.4]} 3. c4 {[%clk 0:03:01.4]} 3... e6 {[%clk 0:02:57.4]}
4. Nc3 {[%clk 0:03:01.4]} 4... Be7 {[%clk 0:02:57.1]} 5. cxd5 {[%clk 0:03:01.2]}
5... exd5 {[%clk 0:02:57]} 6. Bf4 {[%clk 0:03:01.7]} 6... O-O {[%clk 0:02:57.3]}
7. e3 {[%clk 0:03:01.9]} 7... c6 {[%clk 0:02:57.8]} 8. Qc2 {[%clk 0:03:01.9]}
8... Bg4 {[%clk 0:02:56.7]} 9. Bd3 {[%clk 0:03:01.5]} 9... Nbd7 {[%clk
0:02:53.2]} 10. Ne5 {[%clk 0:03:01.1]} 10... Bh5 {[%clk 0:02:49.1]} 11. O-O
{[%clk 0:02:59.2]} 11... Bg6 {[%clk 0:02:44.9]} 12. Rab1 {[%clk 0:02:57.3]}
12... Rc8 {[%clk 0:02:43.9]} 13. b4 {[%clk 0:02:52.7]} 13... Bxd3 {[%clk
0:02:41.8]} 14. Qxd3 {[%clk 0:02:51.4]} 14... Nxe5 {[%clk 0:02:39.2]} 15. Bxe5
{[%clk 0:02:48.7]} 15... Nd7 {[%clk 0:02:31.2]} 16. Bg3 {[%clk 0:02:48]} 16...
a6 {[%clk 0:02:26.5]} 17. a4 {[%clk 0:02:47.6]} 17... Nb6 {[%clk 0:02:26.6]} 18.
b5 {[%clk 0:02:46.5]} 18... cxb5 {[%clk 0:02:22.9]} 19. axb5 {[%clk 0:02:46.2]}
19... a5 {[%clk 0:02:23.4]} 20. Rfc1 {[%clk 0:02:27.1]} 20... Qd7 {[%clk
0:02:09.2]} 21. Be5 {[%clk 0:01:51.8]} 21... Rc4 {[%clk 0:01:48.9]} 22. Ne2
{[%clk 0:01:31.5]} 22... Rfc8 {[%clk 0:01:42.7]} 23. Rd1 {[%clk 0:01:30.8]}
23... a4 {[%clk 0:01:39.2]} 24. e4 {[%clk 0:01:18.1]} 24... a3 {[%clk
0:01:39.1]} 25. exd5 {[%clk 0:01:08.2]} 25... Nxd5 {[%clk 0:01:40]} 26. b6
{[%clk 0:01:02.8]} 26... Qc6 {[%clk 0:00:15.4]} 27. h3 {[%clk 0:00:43.1]} 27...
f6 {[%clk 0:00:07.1]} 28. Bf4 {[%clk 0:00:28.3]} 28... Qa4 {[%clk 0:00:05.8]}
29. Re1 {[%clk 0:00:22.5]} 29... a2 {[%clk 0:00:04.7]} 30. Ra1 {[%clk
0:00:22.6]} 30... Nb4 {[%clk 0:00:05.3]} 31. Qe4 {[%clk 0:00:21.9]} 31... Bf8
{[%clk 0:00:03.6]} 32. Qxb7 {[%clk 0:00:21.5]} 32... Nc2 {[%clk 0:00:02.8]} 33.
Qd5+ {[%clk 0:00:15.7]} 33... Kh8 {[%clk 0:00:02.1]} 34. b7 {[%clk 0:00:15.8]}
34... Nxe1 {[%clk 0:00:01.5]} 35. Rxe1 {[%clk 0:00:15.6]} 1-0

[Event "Early-Titled-Tuesday-Blitz-February-06-2024"]
[Site "Chess.com"]
[Date "2024.02.06"]
[Round "9"]
[White "azikom"]
[Black "Gravity_Chess"]
[Result "1-0"]
[WhiteElo "2729"]
[BlackElo "2847"]
[TimeControl "180+1"]
[EndTime "9:44:37 PST"]
[Termination "azikom won by resignation"]

1. d4 {[%clk 0:02:59.4]} 1... Nf6 {[%clk 0:03:00]} 2. c4 {[%clk 0:02:59]} 2...
g6 {[%clk 0:03:00]} 3. Nc3 {[%clk 0:02:59.3]} 3... Bg7 {[%clk 0:02:59.8]} 4. e4
{[%clk 0:02:58.8]} 4... d6 {[%clk 0:03:00.5]} 5. Bg5 {[%clk 0:02:58.9]} 5... h6
{[%clk 0:03:00.6]} 6. Be3 {[%clk 0:02:52.4]} 6... Ng4 {[%clk 0:03:00.4]} 7. Bc1
{[%clk 0:02:52.2]} 7... c5 {[%clk 0:03:00.9]} 8. d5 {[%clk 0:02:52.1]} 8... Bd4
{[%clk 0:02:40.3]} 9. Nh3 {[%clk 0:02:50.8]} 9... f5 {[%clk 0:02:31.2]} 10. exf5
{[%clk 0:02:26.4]} 10... Bxf5 {[%clk 0:02:30.1]} 11. Bd3 {[%clk 0:02:21.8]}
11... Qd7 {[%clk 0:02:25.3]} 12. O-O {[%clk 0:02:18.7]} 12... Na6 {[%clk
0:02:14.7]} 13. Nf4 {[%clk 0:02:14.8]} 13... g5 {[%clk 0:01:52.7]} 14. Bxf5
{[%clk 0:02:11.8]} 14... Qxf5 {[%clk 0:01:49.9]} 15. Ne6 {[%clk 0:02:09.9]}
15... Kf7 {[%clk 0:00:32.9]} 16. Nxd4 {[%clk 0:02:05.3]} 16... cxd4 {[%clk
0:00:33.8]} 17. Qxd4 {[%clk 0:02:04.8]} 17... Nc5 {[%clk 0:00:33.8]} 18. h3
{[%clk 0:02:01.4]} 18... Nf6 {[%clk 0:00:33.3]} 19. Be3 {[%clk 0:01:44.3]} 19...
Rac8 {[%clk 0:00:33.5]} 20. b3 {[%clk 0:01:42.7]} 20... h5 {[%clk 0:00:26.1]}
21. f3 {[%clk 0:01:32.2]} 21... a6 {[%clk 0:00:24.8]} 22. Rad1 {[%clk
0:01:30.9]} 22... Ncd7 {[%clk 0:00:22]} 23. Ne4 {[%clk 0:01:28]} 23... Rhg8
{[%clk 0:00:19.1]} 24. Ng3 {[%clk 0:01:24.9]} 24... Qg6 {[%clk 0:00:18.5]} 25.
Qd3 {[%clk 0:01:24.4]} 25... Qxd3 {[%clk 0:00:17.5]} 26. Rxd3 {[%clk 0:01:24.3]}
26... b5 {[%clk 0:00:17.1]} 27. cxb5 {[%clk 0:01:22.5]} 27... axb5 {[%clk
0:00:18]} 28. Rd2 {[%clk 0:01:21.3]} 28... g4 {[%clk 0:00:14.2]} 29. fxg4 {[%clk
0:01:19.4]} 29... hxg4 {[%clk 0:00:14.4]} 30. h4 {[%clk 0:01:19.7]} 30... Rc3
{[%clk 0:00:14.2]} 31. Nf5 {[%clk 0:01:12.9]} 31... Rh8 {[%clk 0:00:09.8]} 32.
Bg5 {[%clk 0:01:11.2]} 32... g3 {[%clk 0:00:05]} 33. Re2 {[%clk 0:01:08.8]}
33... Ne5 {[%clk 0:00:03.2]} 34. Nxd6+ {[%clk 0:01:05.3]} 34... exd6 {[%clk
0:00:04.1]} 35. Bxf6 {[%clk 0:01:05.1]} 35... Nf3+ {[%clk 0:00:02.7]} 36. Rxf3
{[%clk 0:01:01.9]} 36... Rc1+ {[%clk 0:00:02.8]} 37. Rf1 {[%clk 0:01:01.6]}
37... Rxf1+ {[%clk 0:00:03.7]} 38. Kxf1 {[%clk 0:01:01.9]} 38... Kxf6 {[%clk
0:00:04.5]} 39. Re4 {[%clk 0:00:53.7]} 39... Kf5 {[%clk 0:00:04.3]} 40. Rb4
{[%clk 0:00:53.2]} 40... Re8 {[%clk 0:00:04.4]} 41. Rxb5 {[%clk 0:00:48.9]}
41... Re3 {[%clk 0:00:05]} 42. Rb8 {[%clk 0:00:40.5]} 42... Kg4 {[%clk
0:00:04.7]} 43. Rg8+ {[%clk 0:00:36.3]} 43... Kf5 {[%clk 0:00:05.2]} 44. h5
{[%clk 0:00:31.1]} 1-0

[Event "Early-Titled-Tuesday-Blitz-February-06-2024"]
[Site "Chess.com"]
[Date "2024.02.06"]
[Round "9"]
[White "Mesa_1"]
[Black "Zurability"]
[Result "1-0"]
[WhiteElo "2581"]
[BlackElo "2735"]
[TimeControl "180+1"]
[EndTime "9:44:38 PST"]
[Termination "Mesa_1 won on time"]

1. e4 {[%clk 0:02:52.2]} 1... c5 {[%clk 0:02:52.9]} 2. Nf3 {[%clk 0:02:51.6]}
2... d6 {[%clk 0:02:50.6]} 3. Bb5+ {[%clk 0:02:51.5]} 3... Bd7 {[%clk
0:02:50.3]} 4. Bxd7+ {[%clk 0:02:50.7]} 4... Qxd7 {[%clk 0:02:51.2]} 5. O-O
{[%clk 0:02:50.5]} 5... Nf6 {[%clk 0:02:51.8]} 6. Qe2 {[%clk 0:02:51.1]} 6...
Nc6 {[%clk 0:02:48.9]} 7. c3 {[%clk 0:02:50.7]} 7... e6 {[%clk 0:02:21.7]} 8. d4
{[%clk 0:02:51.1]} 8... cxd4 {[%clk 0:02:17.5]} 9. cxd4 {[%clk 0:02:52]} 9... d5
{[%clk 0:02:15.7]} 10. e5 {[%clk 0:02:52.6]} 10... Ne4 {[%clk 0:02:16]} 11. Be3
{[%clk 0:02:53.3]} 11... Be7 {[%clk 0:02:14.1]} 12. Ne1 {[%clk 0:02:53.8]} 12...
h6 {[%clk 0:02:04]} 13. f3 {[%clk 0:02:52.5]} 13... Ng5 {[%clk 0:02:04.4]} 14.
Nd2 {[%clk 0:02:52.3]} 14... O-O {[%clk 0:02:02.7]} 15. Nd3 {[%clk 0:02:51.3]}
15... Rac8 {[%clk 0:02:00.7]} 16. a3 {[%clk 0:02:31.6]} 16... f6 {[%clk
0:01:57.8]} 17. h4 {[%clk 0:02:06.7]} 17... Nf7 {[%clk 0:01:57]} 18. f4 {[%clk
0:01:56.7]} 18... fxe5 {[%clk 0:01:54.7]} 19. fxe5 {[%clk 0:01:45.9]} 19... Bxh4
{[%clk 0:01:54.6]} 20. Nf4 {[%clk 0:01:44]} 20... Nh8 {[%clk 0:01:39.5]} 21. Nf3
{[%clk 0:01:08.4]} 21... Bd8 {[%clk 0:01:30.3]} 22. Rf2 {[%clk 0:00:57.9]} 22...
Bb6 {[%clk 0:01:24.4]} 23. Nd3 {[%clk 0:00:54.2]} 23... Rf7 {[%clk 0:01:06.9]}
24. b4 {[%clk 0:00:54.7]} 24... Rcf8 {[%clk 0:01:05.9]} 25. Raf1 {[%clk
0:00:55.3]} 25... Ng6 {[%clk 0:01:03.3]} 26. Qc2 {[%clk 0:00:50.6]} 26... Rf5
{[%clk 0:00:40]} 27. g4 {[%clk 0:00:47.5]} 27... Rxf3 {[%clk 0:00:36.7]} 28.
Rxf3 {[%clk 0:00:46.6]} 28... Rxf3 {[%clk 0:00:36.1]} 29. Rxf3 {[%clk
0:00:47.5]} 29... Bxd4 {[%clk 0:00:20.2]} 30. Nc5 {[%clk 0:00:32.9]} 30... Bxc5
{[%clk 0:00:17.8]} 31. Bxc5 {[%clk 0:00:25.7]} 31... Ncxe5 {[%clk 0:00:16.9]}
32. Rf2 {[%clk 0:00:21.4]} 32... d4 {[%clk 0:00:13.5]} 33. Qe4 {[%clk
0:00:21.8]} 33... d3 {[%clk 0:00:10.8]} 34. Bd4 {[%clk 0:00:20]} 34... Nc6
{[%clk 0:00:06.1]} 35. Bc3 {[%clk 0:00:20.7]} 35... Nh4 {[%clk 0:00:05.5]} 36.
Rd2 {[%clk 0:00:18]} 36... Qf7 {[%clk 0:00:04.9]} 37. Rxd3 {[%clk 0:00:17.9]}
37... e5 {[%clk 0:00:02.6]} 38. Be1 {[%clk 0:00:17.6]} 38... Qe6 {[%clk
0:00:02.5]} 39. Bxh4 {[%clk 0:00:17.1]} 1-0

[Event "Early-Titled-Tuesday-Blitz-February-06-2024"]
[Site "Chess.com"]
[Date "2024.02.06"]
[Round "9"]
[White "Salem-AR"]
[Black "youngKID"]
[Result "1-0"]
[WhiteElo "2945"]
[BlackElo "2816"]
[TimeControl "180+1"]
[EndTime "9:44:40 PST"]
[Termination "Salem-AR won by resignation"]

1. Nf3 {[%clk 0:02:49.7]} 1... Nf6 {[%clk 0:03:00.3]} 2. g3 {[%clk 0:02:49.8]}
2... g6 {[%clk 0:02:59.6]} 3. Bg2 {[%clk 0:02:50]} 3... Bg7 {[%clk 0:03:00.3]}
4. d4 {[%clk 0:02:48.7]} 4... O-O {[%clk 0:03:00.5]} 5. c4 {[%clk 0:02:48.6]}
5... c5 {[%clk 0:03:00]} 6. dxc5 {[%clk 0:02:35.3]} 6... Qa5+ {[%clk 0:02:56.1]}
7. Nfd2 {[%clk 0:02:29.9]} 7... Qxc5 {[%clk 0:02:55.1]} 8. Nc3 {[%clk
0:02:28.7]} 8... d6 {[%clk 0:02:52.5]} 9. O-O {[%clk 0:02:26.7]} 9... Nc6 {[%clk
0:02:52.8]} 10. b3 {[%clk 0:02:15]} 10... d5 {[%clk 0:02:42.9]} 11. Bb2 {[%clk
0:01:56.4]} 11... d4 {[%clk 0:02:42.1]} 12. Nce4 {[%clk 0:01:54.1]} 12... Nxe4
{[%clk 0:02:41.8]} 13. Nxe4 {[%clk 0:01:54.4]} 13... Qh5 {[%clk 0:02:33.5]} 14.
Qd2 {[%clk 0:01:29.3]} 14... Rd8 {[%clk 0:02:26.1]} 15. Rad1 {[%clk 0:01:25.3]}
15... Bg4 {[%clk 0:02:20]} 16. f3 {[%clk 0:01:13.6]} 16... Bc8 {[%clk
0:01:43.3]} 17. g4 {[%clk 0:01:13.7]} 17... Qh4 {[%clk 0:01:39.3]} 18. Bc1
{[%clk 0:01:14.1]} 18... f5 {[%clk 0:01:34.7]} 19. gxf5 {[%clk 0:00:50.2]} 19...
Bxf5 {[%clk 0:01:31.1]} 20. Ng3 {[%clk 0:00:44.8]} 20... Be6 {[%clk 0:00:48.1]}
21. f4 {[%clk 0:00:45.2]} 21... Rf8 {[%clk 0:00:44.9]} 22. Qd3 {[%clk
0:00:43.3]} 22... Bh6 {[%clk 0:00:39.2]} 23. Qe4 {[%clk 0:00:38.5]} 23... Rf6
{[%clk 0:00:28.9]} 24. f5 {[%clk 0:00:36.9]} 24... Qxe4 {[%clk 0:00:16.8]} 25.
Nxe4 {[%clk 0:00:37.8]} 25... Bxc1 {[%clk 0:00:16.3]} 26. Nxf6+ {[%clk
0:00:37.9]} 26... exf6 {[%clk 0:00:17.2]} 27. fxe6 {[%clk 0:00:30.5]} 27... Be3+
{[%clk 0:00:16.8]} 28. Kh1 {[%clk 0:00:31.3]} 28... Kg7 {[%clk 0:00:15.8]} 29.
b4 {[%clk 0:00:28.1]} 29... Re8 {[%clk 0:00:12.8]} 30. b5 {[%clk 0:00:27.9]}
30... Nd8 {[%clk 0:00:12.6]} 31. c5 {[%clk 0:00:25.9]} 31... Nxe6 {[%clk
0:00:11.7]} 32. c6 {[%clk 0:00:21.8]} 32... bxc6 {[%clk 0:00:12.6]} 33. bxc6
{[%clk 0:00:20.5]} 33... Kf7 {[%clk 0:00:05.4]} 34. Rb1 {[%clk 0:00:20.8]} 34...
Re7 {[%clk 0:00:05.8]} 35. Rb7 {[%clk 0:00:21]} 35... f5 {[%clk 0:00:04.9]} 36.
Rfb1 {[%clk 0:00:19.7]} 36... Kf6 {[%clk 0:00:04.3]} 37. Rxe7 {[%clk 0:00:19.8]}
37... Kxe7 {[%clk 0:00:05.2]} 38. Rb7+ {[%clk 0:00:19.4]} 1-0

[Event "Early-Titled-Tuesday-Blitz-February-06-2024"]
[Site "Chess.com"]
[Date "2024.02.06"]
[Round "9"]
[White "DonMicheleCorleone"]
[Black "aghasiyevkamal"]
[Result "0-1"]
[WhiteElo "2452"]
[BlackElo "2661"]
[TimeControl "180+1"]
[EndTime "9:44:40 PST"]
[Termination "aghasiyevkamal won by resignation"]

1. e4 {[%clk 0:03:00.9]} 1... e5 {[%clk 0:02:59.6]} 2. Nf3 {[%clk 0:03:00.6]}
2... Nc6 {[%clk 0:02:59.8]} 3. Bc4 {[%clk 0:03:00.8]} 3... Bc5 {[%clk
0:02:59.1]} 4. c3 {[%clk 0:03:00.6]} 4... Nf6 {[%clk 0:02:58.5]} 5. d4 {[%clk
0:03:01]} 5... exd4 {[%clk 0:02:58.6]} 6. cxd4 {[%clk 0:03:01.9]} 6... Bb4+
{[%clk 0:02:58.7]} 7. Nc3 {[%clk 0:03:02.6]} 7... Nxe4 {[%clk 0:02:58.5]} 8. O-O
{[%clk 0:03:03.3]} 8... Bxc3 {[%clk 0:02:57.8]} 9. bxc3 {[%clk 0:03:02.2]} 9...
d5 {[%clk 0:02:57.6]} 10. Ba3 {[%clk 0:03:01.9]} 10... dxc4 {[%clk 0:02:55.6]}
11. Re1 {[%clk 0:03:01.9]} 11... Be6 {[%clk 0:02:55.8]} 12. Rxe4 {[%clk
0:03:01.8]} 12... Qd5 {[%clk 0:02:55.3]} 13. Qe2 {[%clk 0:03:00.3]} 13... O-O-O
{[%clk 0:02:54.2]} 14. Ne5 {[%clk 0:02:59.1]} 14... Bf5 {[%clk 0:02:41.1]} 15.
Re3 {[%clk 0:02:56.5]} 15... f6 {[%clk 0:02:30.7]} 16. Nxc6 {[%clk 0:02:54.7]}
16... Qxc6 {[%clk 0:02:30.9]} 17. Re7 {[%clk 0:02:48.9]} 17... Rhe8 {[%clk
0:02:27.1]} 18. Re1 {[%clk 0:02:48.1]} 18... Bg6 {[%clk 0:02:25]} 19. Qe6+
{[%clk 0:02:39.2]} 19... Qxe6 {[%clk 0:02:24.4]} 20. R1xe6 {[%clk 0:02:40.1]}
20... b6 {[%clk 0:02:18.6]} 21. Rxe8 {[%clk 0:02:24.5]} 21... Rxe8 {[%clk
0:02:18.9]} 22. Rxe8+ {[%clk 0:02:24.7]} 22... Bxe8 {[%clk 0:02:19.8]} 23. Bf8
{[%clk 0:02:24.1]} 23... g6 {[%clk 0:02:20]} 24. Be7 {[%clk 0:02:18.6]} 24... f5
{[%clk 0:02:20.1]} 25. Kf1 {[%clk 0:02:17.3]} 25... Kd7 {[%clk 0:02:20.5]} 26.
Bf8 {[%clk 0:02:17.5]} 26... Kc6 {[%clk 0:02:18.2]} 27. Ke2 {[%clk 0:02:16.3]}
27... Kb5 {[%clk 0:02:18.2]} 28. Ke3 {[%clk 0:02:11.3]} 28... Ka4 {[%clk
0:02:17.9]} 29. d5 {[%clk 0:02:06.2]} 29... c5 {[%clk 0:01:51.7]} 30. dxc6
{[%clk 0:01:49.9]} 30... Bxc6 {[%clk 0:01:51.2]} 31. Kd4 {[%clk 0:01:48.4]}
31... Bxg2 {[%clk 0:01:42.5]} 32. Kxc4 {[%clk 0:01:47.3]} 32... b5+ {[%clk
0:01:42.5]} 33. Kd4 {[%clk 0:01:43.2]} 33... Bf1 {[%clk 0:01:38.2]} 34. a3
{[%clk 0:01:28.8]} 34... Kb3 {[%clk 0:01:37.3]} 35. Bc5 {[%clk 0:01:26]} 35...
a6 {[%clk 0:01:34.3]} 36. Bb4 {[%clk 0:01:23]} 36... Kc2 {[%clk 0:01:26.4]} 37.
f4 {[%clk 0:00:59.5]} 37... Kd2 {[%clk 0:01:24.7]} 38. c4+ {[%clk 0:00:56.8]}
38... Kc2 {[%clk 0:01:22.4]} 39. c5 {[%clk 0:00:56.9]} 39... Bg2 {[%clk
0:01:22.4]} 40. Ke5 {[%clk 0:00:52.9]} 40... Kb3 {[%clk 0:01:22.6]} 41. Kd6
{[%clk 0:00:50.6]} 41... Ka4 {[%clk 0:01:14.2]} 42. c6 {[%clk 0:00:48.9]} 42...
a5 {[%clk 0:01:14.6]} 43. Bc5 {[%clk 0:00:28.5]} 43... b4 {[%clk 0:01:12.6]} 44.
axb4 {[%clk 0:00:29.4]} 44... axb4 {[%clk 0:01:13]} 45. c7 {[%clk 0:00:28.7]}
45... Bb7 {[%clk 0:01:12.6]} 46. Kd7 {[%clk 0:00:28.4]} 46... b3 {[%clk
0:01:10.3]} 47. Bd4 {[%clk 0:00:28.6]} 47... g5 {[%clk 0:01:03.9]} 48. fxg5
{[%clk 0:00:13.5]} 48... f4 {[%clk 0:01:03.7]} 49. h4 {[%clk 0:00:11.5]} 49...
f3 {[%clk 0:01:03.9]} 50. h5 {[%clk 0:00:12]} 50... f2 {[%clk 0:00:47.7]} 51.
Bxf2 {[%clk 0:00:10.9]} 51... b2 {[%clk 0:00:48.1]} 52. g6 {[%clk 0:00:11.3]}
0-1

[Event "Early-Titled-Tuesday-Blitz-February-06-2024"]
[Site "Chess.com"]
[Date "2024.02.06"]
[Round "9"]
[White "hmatyi07"]
[Black "kekic76"]
[Result "1/2-1/2"]
[WhiteElo "2212"]
[BlackElo "2358"]
[TimeControl "180+1"]
[EndTime "9:44:42 PST"]
[Termination "Game drawn by repetition"]

1. e4 {[%clk 0:02:55.9]} 1... c5 {[%clk 0:03:00]} 2. Nf3 {[%clk 0:02:55]} 2...
e6 {[%clk 0:03:00.5]} 3. d4 {[%clk 0:02:53.1]} 3... cxd4 {[%clk 0:03:01.4]} 4.
Nxd4 {[%clk 0:02:52.9]} 4... Nf6 {[%clk 0:03:02]} 5. Nc3 {[%clk 0:02:52.8]} 5...
Nc6 {[%clk 0:03:02.7]} 6. Ndb5 {[%clk 0:02:52.7]} 6... Bb4 {[%clk 0:03:00.6]} 7.
a3 {[%clk 0:02:52.6]} 7... Bxc3+ {[%clk 0:03:00.7]} 8. Nxc3 {[%clk 0:02:53.5]}
8... d5 {[%clk 0:03:01]} 9. exd5 {[%clk 0:02:54.1]} 9... exd5 {[%clk 0:03:01.3]}
10. Bd3 {[%clk 0:02:55]} 10... Be6 {[%clk 0:02:59.9]} 11. O-O {[%clk 0:02:54.6]}
11... O-O {[%clk 0:03:00.1]} 12. Bg5 {[%clk 0:02:46.6]} 12... h6 {[%clk
0:03:00.4]} 13. Bh4 {[%clk 0:02:46]} 13... Ne5 {[%clk 0:02:58.7]} 14. h3 {[%clk
0:02:37.2]} 14... Rc8 {[%clk 0:02:52.6]} 15. Re1 {[%clk 0:02:34.6]} 15... Nxd3
{[%clk 0:02:49.9]} 16. Qxd3 {[%clk 0:02:32.8]} 16... g5 {[%clk 0:02:45.1]} 17.
Bg3 {[%clk 0:02:31.9]} 17... Qb6 {[%clk 0:02:39.1]} 18. Be5 {[%clk 0:02:26.6]}
18... Qd8 {[%clk 0:02:27.6]} 19. Rad1 {[%clk 0:02:12.7]} 19... Rc6 {[%clk
0:02:19.4]} 20. Qd4 {[%clk 0:01:49.1]} 20... Nd7 {[%clk 0:01:51.9]} 21. Nxd5
{[%clk 0:01:35.6]} 21... Nxe5 {[%clk 0:01:44.7]} 22. Qxe5 {[%clk 0:01:33.7]}
22... Bxd5 {[%clk 0:01:44.1]} 23. Rxd5 {[%clk 0:01:31.2]} 23... Qc7 {[%clk
0:01:44]} 24. Qxc7 {[%clk 0:01:23.1]} 24... Rxc7 {[%clk 0:01:44]} 25. c3 {[%clk
0:01:22.7]} 25... Kg7 {[%clk 0:01:44]} 26. f3 {[%clk 0:01:19.3]} 26... Rfc8
{[%clk 0:01:37.4]} 27. Kf2 {[%clk 0:01:18.8]} 27... b6 {[%clk 0:01:27.8]} 28.
Red1 {[%clk 0:01:16.3]} 28... Rc6 {[%clk 0:01:16.9]} 29. Rd7 {[%clk 0:01:15.4]}
29... R8c7 {[%clk 0:01:17.2]} 30. R1d4 {[%clk 0:01:09.1]} 30... Kf6 {[%clk
0:01:14.3]} 31. Ke3 {[%clk 0:01:02.7]} 31... Rxd7 {[%clk 0:01:09.1]} 32. Rxd7
{[%clk 0:01:02.6]} 32... a5 {[%clk 0:01:09.7]} 33. Kd3 {[%clk 0:00:45.8]} 33...
h5 {[%clk 0:01:08]} 34. c4 {[%clk 0:00:43.5]} 34... h4 {[%clk 0:01:07.3]} 35. b4
{[%clk 0:00:37.3]} 35... axb4 {[%clk 0:01:07.4]} 36. axb4 {[%clk 0:00:38.2]}
36... Ke6 {[%clk 0:01:07.2]} 37. Rd4 {[%clk 0:00:36.7]} 37... Rc7 {[%clk
0:01:04.8]} 38. b5 {[%clk 0:00:35.4]} 38... Ra7 {[%clk 0:01:03.9]} 39. Re4+
{[%clk 0:00:34]} 39... Kf5 {[%clk 0:01:03]} 40. Re2 {[%clk 0:00:27.4]} 40...
Rd7+ {[%clk 0:00:42.5]} 41. Kc3 {[%clk 0:00:27.7]} 41... Rc7 {[%clk 0:00:42.5]}
42. Kb4 {[%clk 0:00:23.3]} 42... Kf4 {[%clk 0:00:42.7]} 43. Kc3 {[%clk
0:00:19.4]} 43... f5 {[%clk 0:00:41.7]} 44. Kd3 {[%clk 0:00:18.2]} 44... Rd7+
{[%clk 0:00:39.9]} 45. Kc3 {[%clk 0:00:18.1]} 45... Rc7 {[%clk 0:00:40]} 46. Re6
{[%clk 0:00:15.5]} 46... Kg3 {[%clk 0:00:36.6]} 47. Re2 {[%clk 0:00:15.2]} 47...
Kf4 {[%clk 0:00:19.3]} 1/2-1/2

[Event "Early-Titled-Tuesday-Blitz-February-06-2024"]
[Site "Chess.com"]
[Date "2024.02.06"]
[Round "9"]
[White "PepeCuenca"]
[Black "chess123456s"]
[Result "0-1"]
[WhiteElo "2686"]
[BlackElo "2556"]
[TimeControl "180+1"]
[EndTime "9:44:43 PST"]
[Termination "chess123456s won on time"]

1. d4 {[%clk 0:02:49.9]} 1... d5 {[%clk 0:02:59.7]} 2. Bf4 {[%clk 0:02:49.6]}
2... c5 {[%clk 0:02:59.3]} 3. e3 {[%clk 0:02:49.7]} 3... Nc6 {[%clk 0:02:59.2]}
4. Nf3 {[%clk 0:02:47.4]} 4... Nf6 {[%clk 0:02:59.3]} 5. Nbd2 {[%clk 0:02:38.9]}
5... e6 {[%clk 0:02:56.5]} 6. c3 {[%clk 0:02:38.1]} 6... Bd6 {[%clk 0:02:56.3]}
7. Bg3 {[%clk 0:02:38.5]} 7... O-O {[%clk 0:02:56.5]} 8. Bd3 {[%clk 0:02:38.5]}
8... b6 {[%clk 0:02:56.7]} 9. e4 {[%clk 0:02:37.8]} 9... Be7 {[%clk 0:02:56.8]}
10. e5 {[%clk 0:02:36]} 10... Nh5 {[%clk 0:02:57]} 11. Ng5 {[%clk 0:02:33.9]}
11... Bxg5 {[%clk 0:02:50.9]} 12. Qxh5 {[%clk 0:02:33.6]} 12... g6 {[%clk
0:02:51.5]} 13. Qe2 {[%clk 0:02:33.1]} 13... cxd4 {[%clk 0:02:52]} 14. h4 {[%clk
0:02:31.8]} 14... Be7 {[%clk 0:02:52.6]} 15. Nf3 {[%clk 0:02:15.8]} 15... dxc3
{[%clk 0:02:51.4]} 16. bxc3 {[%clk 0:02:16.5]} 16... d4 {[%clk 0:02:50.8]} 17.
O-O-O {[%clk 0:02:09.7]} 17... Qc7 {[%clk 0:02:43]} 18. Kb1 {[%clk 0:01:53.7]}
18... dxc3 {[%clk 0:02:39.7]} 19. h5 {[%clk 0:00:45.3]} 19... Nb4 {[%clk
0:02:36.6]} 20. Rc1 {[%clk 0:00:33.8]} 20... Nxd3 {[%clk 0:02:24.2]} 21. Qxd3
{[%clk 0:00:33.8]} 21... Rd8 {[%clk 0:02:23.7]} 22. Qxc3 {[%clk 0:00:30.9]}
22... Qxc3 {[%clk 0:02:23.6]} 23. Rxc3 {[%clk 0:00:31.8]} 23... Ba6 {[%clk
0:02:22.9]} 24. hxg6 {[%clk 0:00:26.2]} 24... hxg6 {[%clk 0:02:22.2]} 25. Bh4
{[%clk 0:00:26]} 25... Bxh4 {[%clk 0:02:18.7]} 26. Rxh4 {[%clk 0:00:25.4]} 26...
Rac8 {[%clk 0:02:15.7]} 27. Rxc8 {[%clk 0:00:23.4]} 27... Rxc8 {[%clk
0:02:16.6]} 28. Ng5 {[%clk 0:00:21.4]} 28... Bd3+ {[%clk 0:02:10.7]} 29. Kb2
{[%clk 0:00:20.9]} 29... Rc2+ {[%clk 0:02:09.2]} 30. Kb3 {[%clk 0:00:20]} 30...
Rxf2 {[%clk 0:02:09]} 31. Nh7 {[%clk 0:00:19.5]} 31... Kg7 {[%clk 0:01:52.3]}
32. Nf6 {[%clk 0:00:17.8]} 32... g5 {[%clk 0:01:51.9]} 33. Rd4 {[%clk
0:00:16.4]} 33... Bc2+ {[%clk 0:01:41]} 34. Kc3 {[%clk 0:00:14.4]} 34... Rxg2
{[%clk 0:01:30.6]} 35. Rd7 {[%clk 0:00:10.3]} 35... a5 {[%clk 0:01:16.6]} 36.
Rb7 {[%clk 0:00:08.5]} 36... Bb1 {[%clk 0:00:48.5]} 37. a4 {[%clk 0:00:07]}
37... Re2 {[%clk 0:00:43.4]} 38. Rxb6 {[%clk 0:00:06.8]} 38... Rxe5 {[%clk
0:00:36.3]} 39. Ne8+ {[%clk 0:00:03.7]} 39... Kf8 {[%clk 0:00:34.3]} 40. Nd6
{[%clk 0:00:03]} 40... Rc5+ {[%clk 0:00:30.2]} 41. Kd4 {[%clk 0:00:01.8]} 41...
Rd5+ {[%clk 0:00:29.9]} 42. Ke3 {[%clk 0:00:02.2]} 42... Bg6 {[%clk 0:00:26.6]}
0-1